Workbook

Sheet 附表六
A1: 附表6:
A2: 2025年开平市政府性基金预算调整明细情况表
J3: 单位：万元
A4: 收 入 | F4: 支 出
A5: 项目 | B5: 年初预算数 | C5: 调增额 | D5: 增减额 | E5: 调整预算数 | F5: 项目 | G5: 年初预算数 | H5: 调增额 | I5: 调减额 | J5: 调整预算数
A6: 国有土地使用权出让收入 | B6: 161,642 | E6: =B6+C6-D6 -> 161,642 | F6: 国有土地使用权出让收入及对应专项债务收入安排的支出 | G6: 129,037 | J6: =G6+H6-I6 -> 129,037
A7: 国有土地收益基金收入 | B7: 21,195 | E7: =B7+C7-D7 -> 21,195 | F7: 国有土地收益基金及对应专项债务收入安排的支出 | G7: 21,193 | J7: =G7+H7-I7 -> 21,193
A8: 农业土地开发资金收入 | B8: 1,033 | E8: 1,033 | F8: 农业土地开发资金及对应专项债务收入安排的支出 | G8: 1,000 | J8: 1,000
A9: 城市基础设施配套费收入 | B9: 13,000 | E9: 13,000 | F9: 城市基础设施配套费及对应专项债务收入安排的支出 | G9: 12,999 | J9: 12,999
A10: 彩票公益金收入 | B10: 1,370 | E10: 1,370 | F10: 彩票公益金及对应专项债务收入安排的支出 | G10: 1,429 | J10: 1,429
A11: 彩票发行机构和彩票销售机构的业务费用 | F11: 大中型水库库区基金安排的支出 | G11: 27 | J11: 27
A12: 污水处理费收入 | B12: 7,000 | E12: 7,000 | F12: 彩票发行销售机构业务费及对应专项债务收入安排的支出 | G12: 113 | J12: 113
A13: 专项债务对应项目专项收入 | B13: 2,365 | C13: 727 | E13: 3,092 | F13: 污水处理费及对应专项债务收入安排的支出 | G13: 7,000 | J13: 7,000
A14: 其他政府性基金收入 | F14: 旅游发展基金支出 | G14: 403 | J14: 403
F15: 大中型水库移民后期扶持基金支出 | G15: 5,134 | J15: 5,134
F16: 小型水库移民扶助基金安排的支出 | G16: 131 | J16: 131
F17: 其他政府性基金及对应专项债务收入安排的支出 | G17: 80,000 | H17: 77,100 | J17: 157,100
F18: 地方政府专项债务付息支出 | G18: 31,479 | H18: =J18-G18 -> 757 | J18: 32,236
F19: 地方政府专项债务发行费用支出 | G19: 66 | H19: =J19-G19 -> 3 | J19: 69
F20: 超长期特别国债安排的支出 | G20: 23,586 | J20: =G20+H20-I20 -> 23,586
A21: 政府性基金预算收入合计 | B21: =SUM(B6:B14) -> 207,605 | C21: =SUM(C6:C20) -> 727 | E21: =B21+C21-D21 -> 208,332 | F21: 政府性基金预算支出合计 | G21: =SUM(G6:G20) -> 313,597 | H21: 77,860 | I21: 0 | J21: =G21+H21-I21 -> 391,457
